bitfinex-derivatives/quotes_SOLF0:USTF0_20250731
["timestamp","ask_amount","ask_price","bid_price","bid_amount"]
[1753958983975,2.95,182.03,182.0,3.25]
[1753958984172,2.95,182.03,182.01,5.4947]
[1753958984369,2.95,182.03,182.02,3.25]
[1753958986473,2.95,182.03,182.02,5.4946]
[1753958986673,2.95,182.03,182.02,8.7146]
[1753958988873,2.95,182.03,182.02,3.22]
[1753958991881,3.04,182.04,182.02,3.22]
[1753958992182,7.40689719,182.05,182.02,3.22]
[1753958992379,3.04,182.03,182.02,3.22]
[1753959002990,8.5343,182.03,182.02,3.22]
[1753959003192,3.04,182.02,182.01,1.91309719]
[1753959003895,3.04,182.02,182.01,10.62799719]
[1753959005898,5.4941,182.04,182.02,3.22]
[1753959006098,3.04,182.03,182.02,3.22]
[1753959006801,8.5343,182.03,182.02,3.22]
[1753959006998,3.04,182.03,182.02,3.22]
[1753959009803,3.04,182.03,182.02,8.7146]
[1753959012505,3.04,182.03,182.02,3.22]
[1753959012903,8.5343,182.03,182.02,3.22]
[1753959013804,3.04,182.03,182.02,8.7146]
[1753959016204,5.4941,182.04,182.02,5.4946]
[1753959016409,8.7441,182.04,182.03,3.02]
[1753959022713,3.25,182.04,182.03,3.02]
[1753959023613,8.744,182.04,182.03,3.02]
[1753959026116,12.72903332,182.04,182.03,3.02]
[1753959026319,12.72903332,182.04,182.02,5.4946]
[1753959026320,9.47903332,182.04,182.02,8.5146]
[1753959026512,3.25,182.03,182.02,8.5146]
[1753959027018,3.25,182.03,182.02,5.4946]
[1753959027220,3.25,182.02,181.98,3.02]
[1753959027517,3.25,182.0,181.99,3.02]
[1753959028308,3.25,182.0,181.97,1.91309719]
[1753959028309,3.98857003,182.0,181.97,3.02]
[1753959028517,3.25,181.98,181.92,4.93309719]
[1753959028719,3.25,181.96,181.93,3.02]
[1753959028920,3.25,181.95,181.93,8.5172]
[1753959029318,3.25,181.95,181.94,3.02]
[1753959031523,3.25,181.95,181.93,5.4972]
[1753959031721,3.25,181.95,181.94,3.02]
[1753959032618,3.25,181.95,181.93,8.5172]
[1753959034522,3.25,181.95,181.93,5.4972]
[1753959034831,3.25,181.95,181.94,3.02]
[1753959036918,3.25,181.95,181.94,8.5171]
[1753959042525,3.25,181.95,181.94,3.02]
[1753959045327,2.97,181.94,181.92,3.01]
[1753959045726,8.4673,181.94,181.92,3.01]
[1753959046025,2.97,181.93,181.91,3.01]
[1753959046230,8.4675,181.93,181.91,3.01]
[1753959046423,2.97,181.92,181.91,3.01]
[1753959047826,8.4677,181.92,181.91,3.01]
[1753959048022,25.68528908,182.07,181.9,1.91309719]
[1753959048023,2.97,181.91,181.9,3.01]
[1753959049232,8.468,181.91,181.9,3.01]
[1753959049429,5.498,181.91,181.9,3.01]
[1753959049630,5.498,181.91,181.88,7.41179719]
[1753959049830,2.97,181.9,181.89,3.01]
[1753959050932,8.4683,181.9,181.89,3.01]
[1753959051632,10.9911,182.0,181.85,3.01]
[1753959051633,2.97,181.87,181.85,3.01]
[1753959052032,2.97,181.87,181.85,7.41269719]
[1753959052234,2.97,181.87,181.86,3.01]
[1753959053124,2.97,181.87,181.85,7.41269719]
[1753959053328,2.97,181.87,181.86,3.01]
[1753959054630,2.97,181.88,181.85,4.92309719]
[1753959054827,2.97,181.88,181.86,3.01]
[1753959055333,2.97,181.87,181.86,3.01]
[1753959056033,2.97,181.87,181.85,3.01]
[1753959056639,2.97,181.86,181.85,3.01]
[1753959057236,8.4695,181.86,181.85,3.01]
[1753959057436,2.97,181.86,181.85,3.01]
[1753959061141,8.4695,181.86,181.85,3.01]
[1753959064642,2.97,181.86,181.85,3.01]
[1753959065341,8.4695,181.86,181.85,3.01]
[1753959065641,2.97,181.86,181.85,3.01]
[1753959065834,2.97,181.88,181.85,4.92309719]
[1753959066039,2.97,181.88,181.86,3.01]
[1753959066434,2.97,181.88,181.87,3.01]
[1753959066638,1.91309719,181.91,181.87,3.01]
[1753959066837,8.4684,181.9,181.87,7.41209719]
[1753959067044,2.97,181.9,181.88,3.01]
[1753959067942,2.97,181.9,181.89,3.01]
[1753959069344,2.97,181.9,181.89,8.5086]
[1753959072346,2.97,181.9,181.89,3.01]
[1753959073350,8.4683,181.9,181.89,3.01]
[1753959074449,8.4683,181.9,181.88,3.01]
[1753959074748,2.97,181.89,181.88,3.01]
[1753959075248,8.4686,181.89,181.88,3.01]
[1753959077048,2.97,181.89,181.88,3.01]
[1753959077754,8.4686,181.89,181.88,3.01]
[1753959078951,2.97,181.89,181.88,3.01]
[1753959081351,8.4686,181.89,181.88,3.01]
[1753959081553,2.97,181.89,181.86,3.15]
[1753959081848,1.91309719,181.88,181.86,3.15]
[1753959082042,2.98,181.87,181.85,3.15]
[1753959082751,5.4996,181.86,181.85,3.15]
[1753959082951,2.98,181.86,181.85,3.15]
[1753959086860,8.4795,181.86,181.85,3.15]
[1753959090659,2.98,181.86,181.85,3.15]
[1753959091555,2.98,181.85,181.81,1.91309719]
[1753959091862,2.98,181.86,181.84,3.15]
[1753959092067,1.91309719,181.89,181.84,3.15]
[1753959092354,2.98,181.88,181.86,3.15]
[1753959092955,8.4791,181.88,181.86,3.15]
[1753959093159,2.98,181.87,181.86,3.15]
[1753959093557,4.89309719,181.87,181.79,213.01991261]
[1753959093756,2.98,181.86,181.82,3.15]
[1753959094058,1.91309719,181.85,181.82,3.15]
[1753959094256,2.98,181.84,181.83,3.15]
[1753959101174,1.91309719,181.87,181.84,3.15]
[1753959101467,1.91309719,181.87,181.79,212.06276425]
[1753959101468,1.91309719,181.89,181.86,3.15]
[1753959101660,2.98,181.87,181.86,3.15]
[1753959103066,2.98,181.87,181.86,8.6495]
[1753959105079,2.98,181.87,181.86,3.15]
[1753959106872,8.4792,181.87,181.86,3.15]
[1753959107780,2.98,181.87,181.86,3.15]
[1753959109279,8.4791,181.87,181.86,3.15]
[1753959112677,1.91309719,181.87,181.81,1.91309719]
[1753959112874,3.23,181.84,181.83,3.04]
[1753959113273,8.73,181.84,181.83,3.04]
[1753959113769,3.23,181.84,181.83,3.04]
[1753959115381,3.23,181.84,181.83,8.5403]
[1753959115584,3.23,181.84,181.83,3.04]
[1753959119485,3.23,181.84,181.83,8.5403]
[1753959120778,5.14309719,181.85,181.84,3.04]
[1753959122782,10.64279719,181.85,181.82,5.5005]
[1753959122988,3.23,181.84,181.83,3.04]
[1753959123183,5.14309719,181.87,181.83,3.04]
[1753959123390,5.14309719,181.87,181.85,5.4997]
[1753959123689,5.14309719,181.87,181.86,3.04]
[1753959126191,3.23,181.87,181.86,5.4994]
[1753959126395,3.23,181.87,181.86,8.5394]
[1753959127592,1.91309719,181.88,181.84,3.04]
[1753959127797,3.23,181.85,181.8,1.91309719]
[1753959127987,3.23,181.83,181.82,5.5004]
[1753959128187,3.23,181.83,181.82,8.5404]
[1753959130999,3.23,181.84,181.83,5.5002]
[1753959131596,3.23,181.84,181.83,8.5402]
[1753959133595,3.23,181.86,181.83,3.04]
[1753959134896,3.23,181.86,181.84,5.5]
[1753959135089,3.23,181.86,181.85,3.04]
[1753959135789,3.23,181.86,181.85,8.5397]
[1753959137100,3.02,181.87,181.86,5.4992]
[1753959137297,3.02,181.87,181.86,8.6292]
[1753959140594,3.02,181.89,181.88,5.4987]
[1753959141201,3.02,181.89,181.87,5.499]
[1753959141500,3.02,181.89,181.88,3.13]
[1753959141896,3.02,181.89,181.88,8.6288]
[1753959146690,1.91309719,181.91,181.9,5.4982]
[1753959147000,3.02,181.91,181.9,8.6282]
[1753959147202,7.01717005,181.91,181.9,8.6282]
[1753959150905,3.02,181.91,181.9,8.6282]
[1753959151705,3.02,181.91,181.9,10.54129719]
[1753959154303,3.02,181.94,181.91,5.4978]
[1753959154607,3.02,181.92,181.91,8.6278]
[1753959163009,3.02,181.92,181.91,10.54089719]
[1753959179932,1.91309719,181.95,181.93,5.4972]
[1753959180130,3.99375372,181.94,181.93,8.7572]
[1753959180536,7.12375372,181.94,181.93,8.7572]
[1753959181236,7.12375372,181.94,181.93,5.4972]
[1753959181735,7.12375372,181.94,181.93,8.7572]
[1753959185532,7.12375372,181.94,181.93,5.4972]
[1753959187943,7.12375372,181.94,181.93,8.7572]
[1753959188239,7.13056763,181.94,181.93,8.7572]
[1753959188841,7.13056763,181.94,181.93,3.26]
[1753959189741,12.62766763,181.94,181.93,3.26]
[1753959190243,7.13056763,181.94,181.93,3.26]
[1753959193243,9.04366482,181.94,181.93,3.26]
[1753959203362,7.13056763,181.94,181.93,3.26]
[1753959211267,7.13056763,181.94,181.9,5.4982]
[1753959211459,3.2,181.92,181.91,3.21]
[1753959211659,7.20056763,181.92,181.91,3.21]
[1753959212359,3.2,181.91,181.86,1.91309719]
[1753959212561,5.11309719,181.89,181.87,3.21]
[1753959212866,3.2,181.88,181.87,3.21]
[1753959213172,3.2,181.89,181.88,3.21]
[1753959213465,7.20789377,181.89,181.88,3.21]
[1753959213663,7.20789377,181.89,181.88,8.7089]
[1753959213965,4.00789377,181.89,181.88,8.7089]
[1753959214161,7.20789377,181.89,181.88,8.7089]
[1753959214362,7.20789377,181.89,181.88,3.21]
[1753959215367,3.2,181.89,181.88,3.21]
[1753959219165,3.2,181.89,181.85,7.41279719]
[1753959219470,5.11309719,181.87,181.86,3.21]
[1753959219871,10.61229719,181.87,181.83,5.5002]
[1753959220171,3.2,181.86,181.84,3.21]
[1753959220768,3.2,181.84,181.83,3.21]
[1753959227474,5.11309719,181.84,181.83,3.21]
[1753959228074,10.61319719,181.84,181.83,3.21]
[1753959230676,5.11309719,181.84,181.83,3.21]
[1753959237679,3.2,181.84,181.81,1.91309719]
[1753959237880,3.2,181.84,181.83,2.95]
[1753959243392,4.60855624,181.93,181.83,2.95]
[1753959243590,3.21,181.85,181.83,2.95]
[1753959246188,3.21,181.85,181.84,2.95]
[1753959250495,8.7098,181.85,181.84,2.95]
[1753959250998,10.62289719,181.85,181.84,2.95]
[1753959255197,5.12309719,181.85,181.84,2.95]
[1753959256804,3.21,181.85,181.84,8.4501]
[1753959256999,3.21,181.85,181.84,2.95]
[1753959257699,10.39269719,181.86,181.84,2.95]
[1753959257899,2.98,181.85,181.84,2.95]
[1753959258998,7.41269719,181.86,181.84,2.95]
[1753959259198,2.98,181.86,181.85,3.24]
[1753959260914,8.4795,181.86,181.85,3.24]
[1753959261102,10.39259719,181.86,181.85,3.24]
[1753959263214,4.89309719,181.86,181.85,3.24]
[1753959263512,8.89354721,181.86,181.85,3.24]
[1753959265313,14.39304721,181.86,181.85,3.24]
[1753959267214,14.39304721,181.86,181.83,5.5003]
[1753959267415,2.98,181.85,181.84,3.24]
[1753959278123,8.4798,181.85,181.83,5.5003]
[1753959278325,2.98,181.84,181.82,7.41369719]
[1753959278529,2.98,181.84,181.83,3.24]
[1753959282732,2.98,181.84,181.83,8.7404]
[1753959295042,2.98,181.84,181.83,3.24]
[1753959296841,2.98,181.84,181.83,8.7404]
[1753959302154,2.98,181.84,181.83,3.21]
[1753959304050,2.98,181.84,181.79,1.91309719]
[1753959304249,4.89309719,181.84,181.81,3.21]
[1753959304555,3.15,181.83,181.81,3.21]
[1753959304751,3.15,181.83,181.79,1.91309719]
[1753959304752,3.15,181.83,181.82,3.21]
[1753959308864,3.15,181.83,181.82,8.7107]
[1753959309055,8.6504,181.83,181.82,3.21]
[1753959309260,3.15,181.83,181.82,3.21]
[1753959312969,3.15,181.83,181.82,8.7107]
[1753959319770,1.91309719,181.84,181.82,5.5007]
[1753959319972,3.14,181.83,181.82,5.5007]
[1753959320577,3.14,181.83,181.82,8.4707]
[1753959332694,7.41279719,181.86,181.84,5.5]
[1753959332988,3.99651842,181.85,181.84,5.5]
[1753959333184,7.13651842,181.85,181.8,1.91309719]
[1753959333389,3.14,181.84,181.83,8.4703]
[1753959333793,5.05309719,181.84,181.83,5.5003]
[1753959333991,3.14,181.83,181.81,8.4708]
[1753959334892,3.14,181.81,181.73,9.24076788]
[1753959335193,3.14,181.78,181.75,2.97]
[1753959335392,5.05309719,181.78,181.75,2.97]
[1753959335596,3.14,181.78,181.77,8.4722]
[1753959336683,3.14,181.78,181.77,5.5022]
[1753959337194,3.14,181.77,181.75,2.97]
[1753959337393,1.91309719,181.77,181.75,2.97]
[1753959337694,3.14,181.76,181.75,8.4726]
[1753959338295,3.14,181.76,181.75,5.5026]
[1753959338891,3.14,181.76,181.71,1.91309719]
[1753959339095,3.14,181.74,181.72,2.97]
[1753959339284,3.14,181.73,181.71,1.91309719]
[1753959339490,3.14,181.73,181.72,2.97]
[1753959339788,3.14,181.73,181.72,8.4735]
[1753959340087,3.14,181.73,181.72,5.5035]
[1753959340491,3.14,181.73,181.72,8.4735]
[1753959342000,3.14,181.73,181.72,5.5035]
[1753959342191,5.05309719,181.73,181.72,5.5035]
[1753959342392,5.05309719,181.73,181.72,8.4735]
[1753959342692,3.14,181.73,181.72,8.4735]
[1753959346297,1.91309719,181.74,181.73,5.5035]
[1753959346599,5.16309719,181.74,181.73,8.5635]
[1753959346896,1.91309719,181.76,181.71,1.91309719]
[1753959347095,3.25,181.76,181.74,3.06]
[1753959347295,3.25,181.75,181.74,3.06]
[1753959347698,3.25,181.75,181.74,8.5631]
[1753959357603,3.25,181.75,181.74,3.06]
[1753959357799,3.25,181.74,181.72,3.06]
[1753959358106,3.25,181.73,181.72,3.06]
[1753959359006,3.25,181.73,181.72,8.5637]
[1753959359205,3.25,181.73,181.72,3.06]
[1753959359405,3.25,181.73,181.7,3.06]
[1753959359607,5.16309719,181.72,181.71,8.564]
[1753959363015,3.25,181.72,181.71,8.564]
[1753959368909,3.25,181.72,181.71,5.504]
[1753959369615,3.25,181.72,181.71,8.564]
[1753959375824,3.25,181.72,181.71,3.06]
[1753959379225,8.7538,181.72,181.71,3.06]
[1753959381127,5.5044,181.7,181.69,1.91309719]
[1753959381333,3.11,181.69,181.67,3.2]
[1753959381927,3.11,181.68,181.65,1.91309719]
[1753959382330,1.91309719,181.68,181.64,1.91309719]
[1753959382537,3.11,181.66,181.65,3.2]
[1753959383024,3.11,181.66,181.65,8.7059]
[1753959383231,1.91309719,181.68,181.65,3.2]
[1753959383434,3.11,181.67,181.65,3.2]
[1753959383933,3.11,181.66,181.65,3.2]
[1753959384133,3.11,181.66,181.65,5.11309719]
[1753959384333,3.11,181.67,181.65,5.11309719]
[1753959384535,3.11,181.67,181.65,7.41889719]
[1753959384733,3.11,181.67,181.66,3.2]
[1753959385834,3.11,181.67,181.66,8.7056]
[1753959389943,5.02309719,181.68,181.67,8.7053]
[1753959390140,4.61864749,181.76,181.67,3.2]
[1753959390141,3.11,181.69,181.67,3.2]
[1753959390436,3.11,181.68,181.67,8.7053]
[1753959390941,5.02309719,181.68,181.67,3.2]
[1753959391337,3.11,181.68,181.67,3.2]
[1753959391638,3.11,181.68,181.67,8.7053]
[1753959396451,3.11,181.72,181.68,3.2]
[1753959396746,3.11,181.71,181.7,3.2]
[1753959396946,3.11,181.72,181.7,3.2]
[1753959397134,7.41659719,181.73,181.69,1.91309719]
[1753959397339,3.11,181.72,181.7,3.2]
[1753959397745,3.11,181.72,181.7,8.7042]
[1753959398046,3.11,181.72,181.71,3.2]
[1753959398747,8.6138,181.72,181.71,3.2]
[1753959398940,8.6138,181.72,181.7,3.2]
[1753959399140,3.11,181.71,181.7,3.2]
[1753959400951,3.11,181.71,181.7,8.7044]
[1753959403048,5.5038,181.72,181.65,3.2]
[1753959403049,3.11,181.7,181.65,3.2]
[1753959403247,5.02309719,181.67,181.63,3.2]
[1753959403551,3.11,181.66,181.64,3.2]
[1753959403753,3.11,181.65,181.64,8.7062]
[1753959406252,3.11,181.65,181.54,9.24076788]
[1753959406550,3.07,181.6,181.58,2.98]
[1753959406747,3.07,181.6,181.59,5.5077]
[1753959407045,3.07,181.6,181.59,8.4877]
[1753959409251,3.07,181.66,181.56,3.00341512]
[1753959409448,5.5066,181.63,181.57,2.98]
[1753959409651,3.07,181.62,181.59,5.5074]
[1753959409850,3.07,181.62,181.61,2.98]
[1753959410952,3.07,181.66,181.61,2.98]
[1753959411352,3.07,181.66,181.62,5.5066]
[1753959411547,3.07,181.65,181.64,2.98]
[1753959411747,3.07,181.65,181.61,5.507]
[1753959411958,3.07,181.65,181.6,3.00341512]
[1753959412258,3.07,181.65,181.63,2.98]
[1753959413158,3.07,181.65,181.64,2.98]
[1753959418461,8.5759,181.65,181.64,2.98]
[1753959419463,5.5059,181.65,181.63,2.98]
[1753959419656,3.07,181.64,181.63,2.98]
[1753959421668,3.07,181.64,181.61,2.98]
[1753959422467,5.5067,181.63,181.61,2.98]
[1753959422664,3.07,181.62,181.61,2.98]
[1753959423068,8.5768,181.62,181.61,2.98]
[1753959423967,3.07,181.62,181.59,2.98]
[1753959425362,3.07,181.6,181.59,2.98]
[1753959425660,3.00341512,181.63,181.55,3.00341512]
[1753959425870,5.5074,181.61,181.57,5.5082]
[1753959426071,3.07,181.6,181.58,2.98]
[1753959427273,5.5076,181.6,181.58,2.98]
[1753959427473,3.07,181.59,181.58,2.98]
[1753959430171,3.07,181.59,181.54,2.98]
[1753959431175,8.5779,181.59,181.55,5.5088]
[1753959431378,3.07,181.58,181.56,2.98]
[1753959431674,3.07,181.58,181.55,5.5088]
[1753959431675,8.5782,181.58,181.55,2.98]
[1753959431872,3.07,181.57,181.55,2.98]
[1753959432073,3.07,181.58,181.46,2.98]
[1753959432269,3.07,181.56,181.53,5.5093]
[1753959432471,3.07,181.56,181.55,2.98]
[1753959432668,3.07,181.56,181.5,2.98]
[1753959432869,3.07,181.56,181.51,3.00341512]
[1753959433174,3.07,181.58,181.52,2.98]
[1753959433475,3.00341512,181.59,181.47,0.9588758]
[1753959433476,3.07,181.54,181.53,2.98]
[1753959435974,5.5087,181.56,181.53,2.98]
[1753959436176,3.2,181.54,181.53,2.98]
[1753959437981,3.2,181.55,181.52,5.5097]
[1753959438281,3.2,181.55,181.54,2.98]
[1753959439378,3.2,181.58,181.54,2.98]
[1753959439778,5.5085,181.57,181.54,2.98]
[1753959439977,3.2,181.56,181.53,5.5093]
[1753959440177,3.2,181.56,181.54,2.98]
[1753959440572,8.7087,181.56,181.53,5.5093]
[1753959440776,3.2,181.55,181.54,8.4892]
[1753959442476,3.2,181.55,181.51,2.98]
[1753959443084,3.2,181.54,181.52,8.4898]
[1753959443477,3.2,181.54,181.41,380.9859]
[1753959443677,3.00341512,181.56,181.49,3.00341512]
[1753959443977,8.7091,181.55,181.52,5.5097]
[1753959444178,6.20341512,181.6,181.53,2.98]
[1753959444378,3.2,181.59,181.53,2.98]
[1753959444780,1.9228195,181.58,181.55,1.9228195]
[1753959445084,3.2,181.57,181.56,2.98]
[1753959447085,3.2,181.57,181.56,8.4886]
[1753959448892,3.2,181.57,181.56,2.98]
[1753959450897,3.2,181.57,181.56,8.4886]
[1753959451997,3.2,181.58,181.57,2.98]
[1753959452694,3.2,181.58,181.57,8.4883]
[1753959456499,3.2,181.58,181.57,2.98]
[1753959463903,3.2,181.58,181.55,2.98]
[1753959464110,3.2,181.58,181.54,2.98]
[1753959464503,5.5089,181.55,181.54,2.98]
[1753959464707,3.00439519,181.55,181.5,2.98]
[1753959464908,3.2,181.54,181.51,2.98]
[1753959465106,8.6399,181.52,181.51,2.98]
[1753959465706,3.13,181.52,181.51,2.98]
[1753959466506,5.5096,181.53,181.5,5.5104]
[1753959466810,3.13,181.52,181.5,5.5104]
[1753959467011,3.13,181.51,181.5,8.7304]
[1753959467713,3.13,181.51,181.5,3.22]
[1753959468212,8.6401,181.51,181.5,3.22]
[1753959469108,3.13,181.51,181.5,3.22]
[1753959472120,3.13,181.51,181.5,8.7304]
[1753959474218,3.13,181.51,181.5,3.22]
[1753959476819,5.05431647,181.51,181.5,3.22]
[1753959477321,3.13,181.51,181.5,3.22]
[1753959479414,8.6401,181.51,181.5,3.22]
[1753959479623,3.13,181.51,181.5,3.22]
[1753959480421,5.05431647,181.51,181.5,3.22]
[1753959481321,10.56441647,181.51,181.5,3.22]
[1753959482725,5.05431647,181.51,181.5,3.22]
[1753959483425,10.56441647,181.51,181.5,3.22]
[1753959490623,5.5104,181.5,181.48,3.22]
[1753959490829,3.13,181.49,181.48,3.22]
[1753959491028,5.05431647,181.49,181.48,3.22]
[1753959491226,1.92431647,181.49,181.39,3.22]
[1753959491429,1.92431647,181.47,181.43,1.92431647]
[1753959491730,3.13,181.46,181.44,3.22]
[1753959492328,3.13,181.46,181.45,5.5119]
[1753959492630,3.13,181.46,181.45,8.7319]
[1753959496527,3.13,181.46,181.45,3.22]
[1753959498729,3.13,181.46,181.45,8.7319]
[1753959498926,3.13,181.46,181.45,3.22]
[1753959499435,3.13,181.46,181.44,8.472]
[1753959499731,3.1,181.44,181.43,8.4725]
[1753959501328,3.1,181.43,181.4,1.92431647]
[1753959501631,1.92431647,181.45,181.43,2.96]
[1753959501632,3.1,181.45,181.43,2.96]
[1753959501830,3.1,181.45,181.44,2.96]
[1753959502532,3.1,181.45,181.44,8.4722]
[1753959504225,8.6115,181.47,181.45,2.96]
[1753959504431,1.92431647,181.48,181.45,2.96]
[1753959504634,3.1,181.47,181.45,2.96]
[1753959505335,8.6113,181.47,181.46,2.96]
[1753959512836,10.53561647,181.47,181.46,2.96]
[1753959513943,8.6113,181.47,181.46,2.96]
[1753959514242,10.53561647,181.47,181.46,2.96]
[1753959515342,5.5119,181.46,181.43,5.5125]
[1753959515535,3.1,181.45,181.44,2.96]
[1753959518738,5.5119,181.45,181.43,2.96]
[1753959518943,3.1,181.44,181.43,2.96]
[1753959523149,3.1,181.44,181.43,8.4725]
[1753959523347,5.5118,181.46,181.44,2.96]
[1753959523549,8.6118,181.46,181.44,2.96]
[1753959523850,3.1,181.45,181.44,2.96]
[1753959524450,3.1,181.44,181.4,2.96]
[1753959524745,3.1,181.41,181.38,2.96]
[1753959524945,1.92431647,181.43,181.39,1.92431647]
[1753959525142,3.27,181.43,181.4,3.22]
[1753959525347,3.27,181.43,181.41,5.5132]
[1753959525547,3.27,181.43,181.41,8.7332]
[1753959526252,3.27,181.43,181.41,5.5132]
[1753959526450,3.27,181.43,181.42,3.22]
[1753959528346,3.27,181.43,181.42,8.7329]
[1753959528853,3.27,181.43,181.42,3.22]
[1753959531653,3.27,181.43,181.42,8.7329]
[1753959533052,5.19431647,181.44,181.43,5.5125]
[1753959533253,5.19431647,181.44,181.43,8.7325]
[1753959534058,3.27,181.44,181.43,8.7325]
[1753959539167,3.27,181.44,181.43,3.22]
[1753959540466,3.27,181.44,181.43,8.7325]
[1753959542271,7.27777529,181.44,181.43,3.22]
[1753959542466,3.27,181.44,181.43,3.22]
[1753959543064,3.27,181.44,181.43,8.7325]
[1753959554583,7.28049086,181.44,181.43,8.7325]
[1753959559182,7.28049086,181.44,181.43,3.22]
[1753959559384,12.79269086,181.44,181.43,3.22]
[1753959561580,7.28049086,181.44,181.43,3.22]
[1753959561977,7.28049086,181.44,181.43,8.7326]
[1753959568885,4.01049086,181.44,181.43,8.7326]
[1753959569088,7.26049086,181.44,181.43,8.7326]
[1753959570287,7.26049086,181.44,181.43,3.22]
[1753959572491,7.26049086,181.44,181.43,8.7325]
[1753959578588,4.01049086,181.44,181.43,8.7325]
[1753959578991,6.51625843,181.49,181.43,3.22]
[1753959579192,3.25,181.46,181.45,3.21]
[1753959579392,7.2642175,181.46,181.45,3.21]
[1753959579593,12.7759175,181.46,181.45,3.21]
[1753959581999,9.5259175,181.46,181.44,3.21]
[1753959582201,7.2642175,181.45,181.44,3.21]
[1753959582392,4.0142175,181.45,181.44,3.21]
[1753959582697,3.25,181.47,181.46,3.21]
[1753959582899,7.26435466,181.47,181.46,91.74692033]
[1753959583295,7.26435466,181.47,181.46,3.21]
[1753959584301,12.77565466,181.47,181.46,3.21]
[1753959586702,3.25,181.47,181.46,3.21]
[1753959586904,7.26218984,181.47,181.46,5.5116]
[1753959587106,7.26218984,181.47,181.46,8.5116]
[1753959587604,7.26218984,181.47,181.46,3.0]
[1753959588900,5.93650631,181.47,181.44,3.0]
[1753959589104,3.24,181.45,181.44,3.0]
[1753959589303,7.25218984,181.45,181.44,3.0]
[1753959590304,12.76408984,181.45,181.44,3.0]
[1753959590599,12.76408984,181.45,181.42,1.92431647]
[1753959590600,3.24,181.44,181.42,3.0]
[1753959590802,3.24,181.43,181.42,3.0]
[1753959591500,3.24,181.43,181.42,8.5128]
[1753959593102,3.24,181.43,181.42,5.5128]
[1753959593403,3.24,181.43,181.42,8.5128]
[1753959593904,3.24,181.43,181.42,3.0]
[1753959595406,8.7525,181.43,181.42,3.0]
[1753959595707,3.24,181.42,181.41,8.513]
[1753959596305,3.24,181.42,181.41,5.513]
[1753959596509,3.24,181.42,181.41,8.513]
[1753959602213,3.24,181.43,181.42,3.0]
[1753959602404,4.00259776,181.43,181.42,8.5129]
[1753959602601,4.00259776,181.43,181.42,10.43721647]
[1753959602803,4.60961968,181.49,181.42,1.92431647]
[1753959603001,3.24,181.44,181.43,5.5125]
[1753959603207,7.24284137,181.44,181.43,7.43681647]